fUSD/lending_fUSD_20250106
["ID","MTS","AMOUNT","RATE_DAILY","PERIOD"]
[347838015,1736146247046,-500.0,0.00010136,2]
[347838016,1736146247055,-500.0,0.00010136,2]
[347838017,1736146247064,-500.0,0.00010136,2]
[347838018,1736146247074,-500.0,0.00010136,2]
[347838019,1736146247083,-500.0,0.00010136,2]
[347838020,1736146247092,-500.0,0.00010136,2]
[347838021,1736146247101,-500.0,0.00010136,2]
[347838022,1736146247110,-573.3360591,0.00010136,2]
[347838023,1736146247119,-500.0,0.00010136,2]
[347838024,1736146247128,-501.73024803,0.00010136,2]
[347838025,1736146247137,-501.7988762,0.00010136,2]
[347838026,1736146247146,-530.92500671,0.00010136,2]
[347838027,1736146247155,-501.05913023,0.00010136,2]
[347838028,1736146247164,-500.0,0.00010136,2]
[347838029,1736146247173,-500.0,0.00010136,2]
[347838030,1736146247182,-500.0,0.00010136,2]
[347838031,1736146247191,-500.0,0.00010136,2]
[347838032,1736146247200,-500.0,0.00010136,2]
[347838033,1736146247209,-500.0,0.00010136,2]
[347838034,1736146247218,-500.0,0.00010136,2]
[347838035,1736146247227,-500.0,0.00010136,2]
[347838036,1736146247236,-500.0,0.00010136,2]
[347838037,1736146247245,-500.0,0.00010136,2]
[347838038,1736146247254,-500.0,0.00010136,2]
[347838039,1736146247263,-576.01,0.00010136,2]
[347838040,1736146247273,-500.0,0.00010136,2]
[347838041,1736146247282,-500.0,0.00010136,2]
[347838042,1736146247291,-500.0,0.00010136,2]
[347838043,1736146247300,-500.0,0.00010136,2]
[347838044,1736146247310,-500.0,0.00010136,2]
[347838045,1736146247319,-768.67,0.00010136,2]
[347838046,1736146247328,-569.39,0.00010136,2]
[347838047,1736146247338,-700.11,0.00010136,2]
[347838048,1736146247347,-500.0,0.00010136,2]
[347838049,1736146247356,-483.42502987,0.00010136,2]
[347838050,1736146247366,-785.52,0.00010136,2]
[347838051,1736146247376,-500.0,0.00010136,2]
[347838052,1736146247385,-500.0,0.00010136,2]
[347838053,1736146247395,-1317.62,0.00010136,2]
[347838054,1736146247404,-500.0,0.00010136,2]
[347838055,1736146247413,-500.0,0.00010136,2]
[347838056,1736146247423,-500.0,0.00010136,2]
[347838057,1736146247432,-500.0,0.00010136,2]
[347838058,1736146247442,-672.37,0.00010136,2]
[347838059,1736146247452,-500.0,0.00010136,2]
[347838060,1736146247462,-500.0,0.00010136,2]
[347838061,1736146247472,-3343.13,0.00010136,2]
[347838062,1736146247482,-500.0,0.00010136,2]
[347838063,1736146247491,-500.0,0.00010136,2]
[347838064,1736146247501,-500.0,0.00010136,2]
[347838065,1736146247511,-500.0,0.00010136,2]
[347838066,1736146247521,-500.0,0.00010136,2]
[347838067,1736146247531,-500.0,0.00010136,2]
[347838068,1736146247541,-500.0,0.00010136,2]
[347838069,1736146247551,-1000.0,0.00010136,2]
[347838070,1736146247561,-500.0,0.00010136,2]
[347838071,1736146247571,-500.0,0.00010136,2]
[347838072,1736146247580,-536.63,0.00010136,2]
[347838073,1736146247590,-507.32,0.00010136,2]
[347838074,1736146247600,-500.0,0.00010136,2]
[347838075,1736146247610,-500.0,0.00010136,2]
[347838076,1736146247621,-500.0,0.00010136,2]
[347838077,1736146247630,-500.0,0.00010136,2]
[347838078,1736146247639,-500.0,0.00010136,2]
[347838079,1736146247649,-1479.24,0.00010136,2]
[347838080,1736146247659,-500.0,0.00010136,2]
[347838081,1736146247668,-1691.28,0.00010136,2]
[347838082,1736146247678,-500.0,0.00010136,2]
[347838083,1736146247688,-716.23,0.00010136,2]
[347838084,1736146247697,-500.0,0.00010136,2]
[347838085,1736146247706,-500.0,0.00010136,2]
[347838086,1736146247716,-602.7,0.00010136,2]
[347838087,1736146247725,-500.0,0.00010136,2]
[347838088,1736146247735,-500.0,0.00010136,2]
[347838089,1736146247744,-500.0,0.00010136,2]
[347838090,1736146247753,-500.0,0.00010136,2]
[347838091,1736146247764,-500.0,0.00010136,2]
[347838092,1736146247775,-500.0,0.00010136,2]
[347838093,1736146247784,-500.0,0.00010136,2]
[347838094,1736146247794,-442.05269109,0.00010136,2]
[347838095,1736146247804,-500.0,0.00010136,2]
[347838096,1736146247815,-500.0,0.00010136,2]
[347838097,1736146247824,-500.0,0.00010136,2]
[347838098,1736146247835,-709.13,0.00010136,2]
[347838099,1736146247846,-597.01,0.00010136,2]
[347838100,1736146247855,-160.47,0.00010137,2]
[347838101,1736146247866,-737.38,0.00010137,2]
[347838102,1736146247875,-48469.98667962,0.00010141,2]
[347838103,1736146247885,-500.0,0.00010272,2]
[347838104,1736146247895,-500.0,0.00010272,2]
[347838105,1736146247904,-500.0,0.00010273,2]
[347838106,1736146247914,-500.0,0.00010273,2]
[347838107,1736146247924,-500.0,0.00010273,2]
[347838108,1736146247934,-506.80296002,0.00010273,2]
[347838109,1736146247944,-500.0,0.00010273,2]
[347838110,1736146247953,-283.50690812,0.00010273,2]
[347838111,1736146247963,-500.0,0.00010273,2]
[347838112,1736146247973,-500.0,0.00010273,2]
[347838113,1736146247983,-500.0,0.00010273,2]
[347838114,1736146247993,-500.0,0.00010273,2]
[347838115,1736146248003,-500.0,0.00010273,2]
[347838116,1736146248013,-500.0,0.00010273,2]
[347838117,1736146248023,-500.0,0.00010273,2]
[347838118,1736146248034,-152.03,0.00010273,2]
[347838119,1736146248044,-480.66,0.00010273,2]
[347838120,1736146248056,-500.0,0.00010273,2]
[347838121,1736146248066,-498.9,0.00010273,2]
[347838122,1736146248077,-500.0,0.00010273,2]
[347838123,1736146248088,-245.95,0.00010273,2]
[347838124,1736146248099,-155.98,0.00010273,2]
[347838125,1736146248108,-500.0,0.00010273,2]
[347838126,1736146248118,-500.0,0.00010273,2]
[347838127,1736146248128,-500.0,0.00010273,2]
[347838128,1736146248139,-500.0,0.00010273,2]
[347838129,1736146248149,-356.13,0.00010273,2]
[347838130,1736146248159,-500.0,0.00010273,2]
[347838131,1736146248170,-256.2,0.00010273,2]
[347838132,1736146248180,-500.0,0.00010273,2]
[347838133,1736146248190,-500.0,0.00010273,2]
[347838134,1736146248199,-501.98,0.00010273,2]
[347838135,1736146248210,-216.77,0.00010273,2]
[347838136,1736146248220,-343.94175515,0.00010273,2]
[347838137,1736146248230,-500.0,0.00010273,2]
[347838138,1736146248241,-500.0,0.00010273,2]
[347838139,1736146248252,-500.0,0.00010273,2]
[347838140,1736146248263,-500.0,0.00010273,2]
[347838141,1736146248276,-500.0,0.00010273,2]
[347838142,1736146248286,-349.54,0.00010273,2]
[347838143,1736146248297,-405.43504886,0.00010273,2]
[347838144,1736146248307,-500.0,0.00010273,2]
[347838145,1736146248317,-500.0,0.00010273,2]
[347838146,1736146248327,-500.0,0.00010273,2]
[347838147,1736146248338,-494.99658422,0.00010273,2]
[347838148,1736146248348,-500.0,0.00010273,2]
[347838149,1736146248358,-383.34338936,0.00010273,2]
[347838150,1736146248370,-500.0,0.00010273,2]
[347838151,1736146248380,-500.0,0.00010273,2]
[347838152,1736146248390,-500.0,0.00010273,2]
[347838153,1736146248400,-500.0,0.00010273,2]
[347838154,1736146248411,-500.0,0.00010273,2]
[347838155,1736146248420,-500.0,0.00010273,2]
[347838156,1736146248431,-500.0,0.00010273,2]
[347838157,1736146248441,-500.0,0.00010273,2]
[347838158,1736146248451,-313.83786466,0.00010273,2]
[347838159,1736146248461,-500.0,0.00010273,2]
[347838160,1736146248470,-500.0,0.00010273,2]
[347838161,1736146248480,-587.21,0.00010273,2]
[347838162,1736146248491,-187.91,0.00010273,2]
[347838163,1736146248502,-500.0,0.00010273,2]
[347838164,1736146248513,-500.0,0.00010273,2]
[347838165,1736146248523,-500.0,0.00010273,2]
[347838166,1736146248536,-500.0,0.00010273,2]
[347838167,1736146248547,-501.22740516,0.00010273,2]
[347838168,1736146248558,-500.0,0.00010273,2]
[347838169,1736146248568,-500.0,0.00010273,2]
[347838170,1736146248578,-4772.46,0.00010273,2]
[347838171,1736146248588,-4343.04,0.00010273,2]
[347838172,1736146248597,-500.0,0.00010273,2]
[347838173,1736146248607,-500.0,0.00010273,2]
[347838174,1736146248618,-500.0,0.00010273,2]
[347838175,1736146248628,-500.0,0.00010273,2]
[347838176,1736146248638,-500.0,0.00010273,2]
[347838177,1736146248648,-1700.1,0.00010273,2]
[347838178,1736146248658,-500.0,0.00010273,2]
[347838179,1736146248669,-1677.41,0.00010273,2]
[347838180,1736146248679,-1979.36,0.00010273,2]
[347838181,1736146248690,-500.0,0.00010273,2]
[347838182,1736146248701,-2912.5,0.00010273,2]
[347838183,1736146248711,-637.75,0.00010273,2]
[347838184,1736146248722,-500.0,0.00010273,2]
[347838185,1736146248732,-2622.3,0.00010273,2]
[347838186,1736146248742,-758.31,0.00010273,2]
[347838187,1736146248752,-500.0,0.00010273,2]
[347838188,1736146248762,-500.0,0.00010273,2]
[347838189,1736146248773,-500.0,0.00010273,2]
[347838190,1736146248783,-500.0,0.00010273,2]
[347838191,1736146248793,-500.0,0.00010273,2]
[347838192,1736146248803,-500.0,0.00010273,2]
[347838193,1736146248813,-330.44,0.00010273,2]
[347838194,1736146248823,-500.0,0.00010273,2]
[347838195,1736146248833,-500.0,0.00010273,2]
[347838196,1736146248843,-500.0,0.00010273,2]
[347838197,1736146248853,-500.0,0.00010273,2]
[347838198,1736146248863,-500.0,0.00010273,2]
[347838199,1736146248874,-531.92,0.00010273,2]
[347838200,1736146248884,-500.0,0.00010273,2]
[347838201,1736146248894,-500.0,0.00010307,2]
[347838202,1736146248904,-360.77,0.00010307,2]
[347838203,1736146248915,-500.0,0.00010307,2]
[347838204,1736146248925,-500.0,0.00010307,2]
[347838205,1736146248935,-500.92651782,0.00010307,2]
[347838206,1736146248946,-501.07359486,0.00010307,2]
[347838207,1736146248957,-383.57833754,0.00010307,2]
[347838208,1736146248967,-500.97845328,0.00010307,2]
[347838209,1736146248977,-500.0,0.00010307,2]
[347838210,1736146248988,-500.0,0.00010307,2]
[347838211,1736146248998,-501.25892503,0.00010307,2]
[347838212,1736146249008,-266.27365135,0.00010307,2]
[347838213,1736146249018,-501.43689111,0.00010307,2]
[347838214,1736146249029,-500.85699091,0.00010307,2]
[347838215,1736146249039,-500.0,0.00010307,2]
[347838216,1736146249048,-501.109774,0.00010307,2]
[347838217,1736146249059,-501.18501996,0.00010307,2]
[347838218,1736146249070,-500.0,0.00010307,2]
[347838219,1736146249080,-300.93127022,0.00010307,2]
[347838220,1736146249090,-443.31117043,0.00010307,2]
[347838221,1736146249100,-159.87541646,0.00010307,2]
[347838222,1736146249110,-501.04815011,0.00010307,2]
[347838223,1736146249120,-411.59798617,0.00010307,2]
[347838224,1736146249130,-250.58279796,0.00010307,2]
[347838225,1736146249141,-501.43649926,0.00010307,2]
[347838226,1736146249151,-500.0,0.00010307,2]
[347838227,1736146249162,-500.0,0.00010307,2]
[347838228,1736146249171,-500.0,0.00010307,2]
[347838229,1736146249182,-191.25602465,0.00010307,2]
[347838230,1736146249192,-301.09111241,0.00010307,2]
[347838231,1736146249202,-200.04405743,0.00010307,2]
[347838232,1736146249212,-329.21410116,0.00010307,2]
[347838233,1736146249222,-500.0,0.00010307,2]
[347838234,1736146249231,-492.75175698,0.00010307,2]
[347838235,1736146249241,-1107.86,0.00010307,2]
[347838236,1736146249251,-500.0,0.00010307,2]
[347838237,1736146249261,-209.77038097,0.00010307,2]
[347838238,1736146249271,-526.06,0.00010307,2]
[347838239,1736146249282,-157.87858191,0.00010307,2]
[347838240,1736146249292,-4758.37,0.00010307,2]
[347838241,1736146249303,-557.98468489,0.00010307,2]
[347838242,1736146249313,-641.41343921,0.00010307,2]
[347838243,1736146249324,-184.01,0.00010307,2]
[347838244,1736146249334,-500.0,0.00010307,2]
[347838245,1736146249344,-566.94012812,0.00010307,2]
[347838246,1736146249354,-619.95,0.00010307,2]
[347838247,1736146249364,-556.63,0.00010307,2]
[347838248,1736146249374,-553.55,0.00010307,2]
[347838249,1736146249384,-481.35857457,0.00010307,2]
[347838250,1736146249394,-500.0,0.00010307,2]
[347838251,1736146249404,-416.74311405,0.00010307,2]
[347838252,1736146249414,-474.76735318,0.00010307,2]
[347838253,1736146249424,-191.91519275,0.00010307,2]
[347838254,1736146249434,-567.43067046,0.00010307,2]
[347838255,1736146249444,-356.3007759,0.00010307,2]
[347838256,1736146249453,-500.0,0.00010307,2]
[347838257,1736146249463,-500.0,0.00010307,2]
[347838258,1736146249472,-1493.4,0.00010307,2]
[347838259,1736146249482,-500.0,0.00010307,2]
[347838260,1736146249492,-500.0,0.00010307,2]
[347838261,1736146249503,-2244.15,0.00010307,2]
[347838262,1736146249513,-371.28117356,0.00010307,2]
[347838263,1736146249523,-500.0,0.00010307,2]
[347838264,1736146249533,-632.11,0.00010307,2]
[347838265,1736146249542,-159.78400911,0.00010307,2]
[347838266,1736146249552,-500.0,0.00010307,2]
[347838267,1736146249561,-212.02409958,0.00010307,2]
[347838268,1736146249571,-203.86492456,0.00010307,2]
[347838269,1736146249580,-500.0,0.00010307,2]
[347838270,1736146249590,-500.0,0.00010307,2]
[347838271,1736146249599,-500.0,0.00010307,2]
[347838272,1736146249608,-1083.83,0.00010307,2]
[347838273,1736146249618,-1023.4,0.00010307,2]
[347838274,1736146249628,-500.0,0.00010307,2]
[347838275,1736146249638,-510.04523799,0.00010307,2]
[347838276,1736146249647,-377.93351,0.00010307,2]
[347838277,1736146249657,-500.0,0.00010307,2]
[347838278,1736146249667,-500.0,0.00010307,2]
[347838279,1736146249676,-237.39,0.00010403,2]
[347838280,1736146249685,-500.0,0.00010406,2]
[347838281,1736146249695,-500.0,0.00010406,2]
[347838282,1736146249705,-1657.33,0.00010407,2]
[347838283,1736146249715,-704.79,0.00010407,2]
[347838284,1736146249882,-175.14846395,0.00010407,2]
[347838285,1736146249892,-500.0,0.00010408,2]
[347838286,1736146249901,-502.86388812,0.00010408,2]
[347838287,1736146249911,-501.09725874,0.00010408,2]
[347838288,1736146249920,-501.11965455,0.00010408,2]
[347838289,1736146249930,-1019.75,0.00010408,2]
[347838290,1736146249939,-501.1076926,0.00010408,2]
[347838291,1736146249949,-501.19701899,0.00010408,2]
[347838292,1736146249959,-501.31056126,0.00010408,2]
[347838293,1736146249968,-577.94559217,0.00010408,2]
[347838294,1736146249977,-500.0,0.00010408,2]
[347838295,1736146249986,-500.0,0.00010408,2]
[347838296,1736146249995,-500.0,0.00010408,2]
[347838297,1736146250005,-502.04146378,0.00010408,2]
[347838298,1736146250014,-501.13355545,0.00010408,2]
[347838299,1736146250023,-501.09478224,0.00010408,2]
[347838300,1736146250033,-501.12103225,0.00010408,2]
[347838301,1736146250042,-500.0,0.00010408,2]
[347838302,1736146250051,-500.78557783,0.00010408,2]
[347838303,1736146250062,-500.63137883,0.00010408,2]
[347838304,1736146250071,-357.14830284,0.00010408,2]
[347838305,1736146250080,-1544.02,0.00010408,2]
[347838306,1736146250090,-500.0,0.00010408,2]
[347838307,1736146250099,-500.0,0.00010408,2]
[347838308,1736146250108,-500.82726261,0.00010408,2]
[347838309,1736146250118,-500.0,0.00010408,2]
[347838310,1736146250127,-500.43463441,0.00010408,2]
[347838311,1736146250136,-500.0,0.00010408,2]
[347838312,1736146250145,-500.0,0.00010408,2]
[347838313,1736146250155,-500.65433567,0.00010408,2]
[347838314,1736146250164,-500.85268257,0.00010408,2]
[347838315,1736146250174,-500.0,0.00010408,2]
[347838316,1736146250183,-500.0,0.00010408,2]
[347838317,1736146250192,-500.0,0.00010408,2]
[347838318,1736146250201,-500.48833845,0.00010408,2]
[347838319,1736146250211,-500.0,0.00010408,2]
[347838320,1736146250221,-500.0,0.00010408,2]
[347838321,1736146250230,-500.50102348,0.00010408,2]
[347838322,1736146250240,-500.0,0.00010408,2]
[347838323,1736146250250,-500.0,0.00010408,2]
[347838324,1736146250259,-500.31768155,0.00010408,2]
[347838325,1736146250269,-500.0,0.00010408,2]
[347838326,1736146250279,-500.0,0.00010408,2]
[347838327,1736146250289,-501.45842499,0.00010408,2]
[347838328,1736146250299,-500.30494021,0.00010408,2]
[347838329,1736146250308,-754.58,0.00010408,2]
[347838330,1736146250318,-500.0,0.00010408,2]
[347838331,1736146250328,-500.0,0.00010408,2]
[347838332,1736146250337,-471.52733701,0.00010408,2]
[347838333,1736146250347,-500.0,0.00010408,2]
[347838334,1736146250357,-237.86976817,0.00010408,2]
[347838335,1736146250367,-500.0,0.00010408,2]
[347838336,1736146250377,-500.45813681,0.00010408,2]
[347838337,1736146250387,-434.97513068,0.00010408,2]
[347838338,1736146250396,-501.55671603,0.00010408,2]
[347838339,1736146250406,-518.85,0.00010408,2]
[347838340,1736146250417,-500.0,0.00010408,2]
[347838341,1736146250426,-500.78159102,0.00010408,2]
[347838342,1736146250436,-500.75054135,0.00010408,2]
[347838343,1736146250445,-503.25182189,0.00010408,2]
[347838344,1736146250455,-500.0,0.00010408,2]
[347838345,1736146250464,-565.94694551,0.00010408,2]
[347838346,1736146250474,-836.56,0.00010408,2]
[347838347,1736146250484,-500.77182086,0.00010408,2]
[347838348,1736146250494,-502.12416471,0.00010408,2]
[347838349,1736146250504,-500.44863121,0.00010408,2]
[347838350,1736146250513,-1621.684072,0.00010408,2]
[347838351,1736146250523,-500.0,0.00010408,2]
[347838352,1736146250532,-500.38425555,0.00010408,2]
[347838353,1736146250542,-500.0,0.00010408,2]
[347838354,1736146250552,-500.0,0.00010408,2]
[347838355,1736146250562,-500.0,0.00010408,2]
[347838356,1736146250571,-500.41095643,0.00010408,2]
[347838357,1736146250581,-500.0,0.00010408,2]
[347838358,1736146250590,-500.0,0.00010408,2]
[347838359,1736146250599,-500.0,0.00010408,2]
[347838360,1736146250608,-500.57132054,0.00010408,2]
[347838361,1736146250619,-500.0,0.00010408,2]
[347838362,1736146250628,-570.45412714,0.00010408,2]
[347838363,1736146250638,-506.8486396,0.00010408,2]
[347838364,1736146250648,-500.0,0.00010408,2]
[347838365,1736146250657,-2716.93,0.00010408,2]
[347838366,1736146250668,-496.55287033,0.00010408,2]
[347838367,1736146250677,-500.0,0.00010408,2]
[347838368,1736146250687,-1758.16002,0.00010408,2]
[347838369,1736146250696,-500.0,0.00010408,2]
[347838370,1736146250706,-500.0,0.00010408,2]
[347838371,1736146250716,-382.6766622,0.00010408,2]
[347838372,1736146250725,-500.0,0.00010408,2]
[347838373,1736146250735,-604.45961294,0.00010408,2]
[347838374,1736146250745,-729.04,0.00010408,2]
[347838375,1736146250754,-500.0,0.00010408,2]
[347838376,1736146250766,-500.0,0.00010408,2]
[347838377,1736146250776,-500.0,0.00010408,2]
[347838378,1736146250785,-500.0,0.00010408,2]
[347838379,1736146250795,-202.56776902,0.00010408,2]
[347838380,1736146250804,-500.0,0.00010408,2]
[347838381,1736146250814,-509.36,0.00010408,2]
[347838382,1736146250823,-500.0,0.00010408,2]
[347838383,1736146250833,-500.0,0.00010408,2]
[347838384,1736146250843,-500.0,0.00010408,2]
[347838385,1736146250852,-500.0,0.00010408,2]
[347838386,1736146250861,-500.0,0.00010408,2]
[347838387,1736146250871,-500.0,0.00010408,2]
[347838388,1736146250880,-500.0,0.00010408,2]
[347838389,1736146250889,-500.0,0.00010408,2]
[347838390,1736146250899,-500.0,0.00010408,2]
[347838391,1736146250909,-500.0,0.00010408,2]
[347838392,1736146250918,-617.85994991,0.00010408,2]
[347838393,1736146250928,-500.0,0.00010408,2]
[347838394,1736146250939,-500.0,0.00010408,2]
[347838395,1736146250948,-500.0,0.00010408,2]
[347838396,1736146250957,-500.0,0.00010408,2]
[347838397,1736146250967,-500.0,0.00010408,2]
[347838398,1736146250976,-542.57327071,0.00010408,2]
[347838399,1736146250985,-500.0,0.00010408,2]
[347838400,1736146250995,-500.0,0.00010408,2]
[347838401,1736146251004,-500.0,0.00010408,2]
[347838402,1736146251014,-356.9002464,0.00010408,2]
[347838403,1736146251024,-500.0,0.00010408,2]
[347838404,1736146251033,-351.26411594,0.00010408,2]
[347838405,1736146251043,-1369.64,0.00010408,2]
[347838406,1736146251052,-555.11664775,0.00010408,2]
[347838407,1736146251062,-500.0,0.00010408,2]
[347838408,1736146251070,-500.0,0.00010408,2]
[347838409,1736146251080,-500.0,0.00010408,2]
[347838410,1736146251089,-500.0,0.00010408,2]
[347838411,1736146251099,-500.0,0.00010408,2]
[347838412,1736146251109,-2225.72,0.00010408,2]
[347838413,1736146251119,-1238.2,0.00010408,2]
[347838414,1736146251128,-500.0,0.00010408,2]
[347838415,1736146251137,-500.0,0.00010408,2]
[347838416,1736146251147,-500.0,0.00010408,2]
[347838417,1736146251156,-561.09,0.00010408,2]
[347838418,1736146251165,-845.21,0.00010408,2]
[347838419,1736146251174,-2383.62,0.00010408,2]
[347838420,1736146251183,-500.0,0.00010408,2]
[347838421,1736146251193,-500.0,0.00010408,2]
[347838422,1736146251203,-500.0,0.00010408,2]
[347838423,1736146251211,-500.0,0.00010408,2]
[347838424,1736146251221,-556.23,0.00010408,2]
[347838425,1736146251231,-500.0,0.00010408,2]
[347838426,1736146251241,-5872.59,0.00010408,2]
[347838427,1736146251253,-500.0,0.00010408,2]
[347838428,1736146251262,-589.06,0.00010408,2]
[347838429,1736146251272,-500.0,0.00010408,2]
[347838430,1736146251283,-673.64,0.00010408,2]
[347838431,1736146251292,-500.0,0.00010408,2]
[347838432,1736146251302,-500.0,0.00010408,2]
[347838433,1736146251311,-500.0,0.00010408,2]
[347838434,1736146251321,-500.0,0.00010408,2]
[347838435,1736146251332,-500.0,0.00010408,2]
[347838436,1736146251341,-500.0,0.00010408,2]
[347838437,1736146251351,-500.0,0.00010408,2]
[347838438,1736146251362,-500.0,0.00010408,2]
[347838439,1736146251372,-634.86382907,0.00010408,2]
[347838440,1736146251381,-500.0,0.00010408,2]
[347838441,1736146251391,-500.0,0.00010408,2]
[347838442,1736146251401,-500.0,0.00010408,2]
[347838443,1736146251411,-500.0,0.00010408,2]
[347838444,1736146251420,-500.0,0.00010408,2]
[347838445,1736146251430,-500.0,0.00010408,2]
[347838446,1736146251439,-500.0,0.00010408,2]
[347838447,1736146251449,-500.0,0.00010408,2]
[347838448,1736146251459,-500.0,0.00010408,2]
[347838449,1736146251469,-500.0,0.00010408,2]
[347838450,1736146251479,-500.0,0.00010408,2]
[347838451,1736146251488,-500.0,0.00010408,2]
[347838452,1736146251498,-2620.63,0.00010408,2]
[347838453,1736146251508,-515.0,0.00010408,2]
[347838454,1736146251517,-1465.5,0.00010408,2]
[347838455,1736146251527,-500.0,0.00010408,2]
[347838456,1736146251537,-500.0,0.00010408,2]
[347838457,1736146251546,-500.0,0.00010408,2]
[347838458,1736146251556,-500.0,0.00010408,2]
[347838459,1736146251566,-502.62,0.00010408,2]
[347838460,1736146251575,-500.0,0.00010408,2]
[347838461,1736146251585,-2213.07,0.00010408,2]
[347838462,1736146251595,-500.0,0.00010408,2]
[347838463,1736146251604,-885.5,0.00010408,2]
[347838464,1736146251614,-500.0,0.00010408,2]
[347838465,1736146251624,-500.0,0.00010408,2]
[347838466,1736146251634,-500.0,0.00010408,2]
[347838467,1736146251643,-3079.1,0.00010408,2]
[347838468,1736146251653,-2813.28,0.00010408,2]
[347838469,1736146251663,-500.0,0.00010408,2]
[347838470,1736146251672,-500.0,0.00010408,2]
[347838471,1736146251682,-500.0,0.00010408,2]
[347838472,1736146251691,-1353.21,0.00010408,2]
[347838473,1736146251701,-500.0,0.00010408,2]
[347838474,1736146251711,-500.0,0.00010408,2]
[347838475,1736146251721,-500.0,0.00010408,2]
[347838476,1736146251730,-500.0,0.00010408,2]
[347838477,1736146251740,-500.0,0.00010408,2]
[347838478,1736146251750,-500.0,0.00010408,2]
[347838479,1736146251759,-500.0,0.00010408,2]
[347838480,1736146251771,-950.57,0.00010408,2]
[347838481,1736146251782,-614.5,0.00010408,2]
[347838482,1736146251792,-500.0,0.00010408,2]
[347838483,1736146251802,-500.0,0.00010408,2]
[347838484,1736146251811,-500.0,0.00010408,2]
[347838485,1736146251820,-503.50101417,0.00010408,2]
[347838486,1736146251830,-160.42528146,0.00010408,2]
[347838487,1736146251840,-589.55,0.00010408,2]
[347838488,1736146251849,-473.26,0.00010408,2]
[347838489,1736146251859,-1036.35,0.00010409,2]
[347838490,1736146251868,-1081.26,0.00010409,2]
[347838491,1736146251878,-2048.23,0.00010409,2]
[347838492,1736146251887,-1278.88,0.00010409,2]
[347838493,1736146251897,-644.36,0.00010409,2]
[347838494,1736146251907,-1260.55,0.00010409,2]
[347838495,1736146251916,-731.83,0.00010409,2]
[347838496,1736146251926,-1340.36,0.00010409,2]
[347838497,1736146251935,-500.0,0.00010409,2]
[347838498,1736146251944,-1187.99,0.00010409,2]
[347838499,1736146251954,-2277.14,0.00010409,2]
[347838500,1736146251963,-500.0,0.00010409,2]
[347838501,1736146251973,-1121.46,0.00010409,2]
[347838502,1736146251982,-500.0,0.00010409,2]
[347838503,1736146251992,-815.01,0.00010409,2]
[347838504,1736146252002,-505.79694314,0.0001041,2]
[347838505,1736146252011,-500.0,0.0001041,2]
[347838506,1736146252020,-500.0,0.0001041,2]
[347838507,1736146252030,-500.0,0.0001041,2]
[347838508,1736146252040,-500.0,0.0001041,2]
[347838509,1736146252049,-352.39099956,0.0001041,2]
[347838510,1736146252058,-500.0,0.0001041,2]
[347838511,1736146252067,-576.01,0.0001041,2]
[347838512,1736146252077,-500.0,0.0001041,2]
[347838513,1736146252086,-500.0,0.0001041,2]
[347838514,1736146252095,-500.0,0.0001041,2]